bitfinex/quotes_BTCUSD_20260310
["timestamp","ask_amount","ask_price","bid_price","bid_amount"]
[1773115313502,0.07310577,69525.0,69515.0,0.00743498]
[1773115313658,0.00118908,69525.0,69515.0,0.00743498]
[1773115313847,0.07310623,69525.0,69515.0,0.00743498]
[1773115314301,0.07191715,69525.0,69515.0,0.00743498]
[1773115314852,0.00021413,69526.0,69515.0,0.00743498]
[1773115315062,0.00021413,69526.0,69516.0,0.26802232]
[1773115315262,0.07335004,69532.0,69519.0,0.00741867]
[1773115315464,0.07335004,69532.0,69519.0,0.00923953]
[1773115315666,0.00022001,69533.0,69519.0,0.00923953]
[1773115315866,0.00022001,69533.0,69519.0,0.00038086]
[1773115316094,0.10212921,69533.0,69520.0,0.00144]
[1773115316294,0.28009001,69531.0,69519.0,0.00038086]
[1773115316498,0.03,69531.0,69521.0,0.00741867]
[1773115316827,0.03,69531.0,69522.0,0.00741867]
[1773115316961,0.10191045,69531.0,69522.0,0.07933828]
[1773115317368,0.10191045,69531.0,69520.0,0.00144]
[1773115317566,0.03,69527.0,69510.0,0.07193209]
[1773115317768,0.03,69525.0,69511.0,0.00144]
[1773115317984,0.00038086,69527.0,69512.0,0.00144]
[1773115317985,0.27727784,69523.0,69512.0,0.00144]
[1773115318643,0.00038086,69527.0,69512.0,0.00144]
[1773115318644,0.30815909,69538.0,69512.0,0.00144]
[1773115318645,0.07315761,69536.0,69514.0,0.00739411]
[1773115318773,0.07315761,69536.0,69517.0,0.26636815]
[1773115318980,0.03,69535.0,69521.0,0.07192071]
[1773115319198,0.03,69535.0,69522.0,0.0073993]
[1773115319474,0.03,69535.0,69516.0,0.07192531]
[1773115319475,0.00144,69534.0,69514.0,0.00038086]
[1773115319682,0.03,69528.0,69515.0,0.00144]
[1773115319921,0.03,69526.0,69515.0,0.00144]
[1773115320330,0.07315761,69536.0,69517.0,0.26636815]
[1773115320331,0.00125205,69536.0,69517.0,0.26636815]
[1773115320569,0.00048,69539.0,69521.0,0.26636815]
[1773115320703,0.07188764,69553.0,69520.0,0.23196644]
[1773115320704,0.24727784,69560.0,69531.0,0.26636815]
[1773115320934,0.24727784,69560.0,69524.0,0.07191761]
[1773115320935,0.03,69548.0,69524.0,0.07191761]
[1773115321123,0.03,69546.0,69528.0,0.26636815]
[1773115321323,0.03,69546.0,69530.0,0.00737615]
[1773115321585,0.03,69546.0,69532.0,0.00737615]
[1773115321914,0.03,69546.0,69534.0,0.00737615]
[1773115322051,0.03,69546.0,69535.0,0.00737615]
[1773115322243,0.0303217,69546.0,69535.0,0.00737615]
[1773115322445,0.03,69545.0,69535.0,0.00737615]
[1773115322649,0.00023,69550.0,69538.0,0.00798144]
[1773115322972,0.07212094,69550.0,69538.0,0.00798144]
[1773115323172,0.07223515,69550.0,69538.0,0.00798144]
[1773115323562,0.07223515,69550.0,69505.0,0.0002]
[1773115323563,0.03,69549.0,69505.0,0.0002]
[1773115323765,0.07223515,69550.0,69510.0,0.00731864]
[1773115323766,0.00683725,69538.0,69510.0,0.00731864]
[1773115324003,0.03,69532.0,69511.0,0.00144]
[1773115324209,0.03,69526.0,69512.0,0.00144]
[1773115324544,0.27643721,69526.0,69514.0,0.0002]
[1773115325386,0.03,69524.0,69514.0,0.00058086]
[1773115326611,0.03,69524.0,69509.0,0.07989107]
[1773115326816,0.27643721,69522.0,69510.0,0.00144]
[1773115327041,0.03,69522.0,69511.0,0.00794427]
[1773115327198,0.03,69522.0,69512.0,0.00144]
[1773115327569,0.03,69522.0,69512.0,0.00938427]
[1773115327745,0.03,69523.0,69512.0,0.00938427]
[1773115327905,0.07191339,69529.0,69513.0,0.26961474]
[1773115328248,0.23208395,69550.0,69518.0,0.00794427]
[1773115328249,0.00144,69535.0,69518.0,0.00794427]
[1773115328551,0.07190003,69541.0,69521.0,0.26961474]
[1773115328809,0.03,69540.0,69523.0,0.26961474]
[1773115329017,0.03,69540.0,69524.0,0.00791061]
[1773115329218,0.03,69540.0,69522.0,0.00791061]
[1773115329445,0.03,69540.0,69525.0,0.00935061]
[1773115329652,0.03,69538.0,69527.0,0.00791061]
[1773115329863,0.07333291,69548.0,69530.0,0.00791061]
[1773115330082,0.07211207,69549.0,69533.0,0.26961474]
[1773115330289,0.00022001,69549.0,69535.0,0.26961474]
[1773115330474,0.00022001,69549.0,69538.0,0.00791061]
[1773115330702,0.03022001,69549.0,69539.0,0.00935061]
[1773115331109,0.10211194,69549.0,69539.0,0.00935061]
[1773115331521,0.10222615,69549.0,69539.0,0.00935061]
[1773115331753,0.03,69548.0,69539.0,0.00935061]
[1773115332201,0.03,69548.0,69531.0,0.07191032]
[1773115332428,0.03,69544.0,69523.0,0.00748921]
[1773115332613,0.03,69544.0,69524.0,0.00144]
[1773115332614,0.27787721,69544.0,69524.0,0.00144]
[1773115332775,0.03,69541.0,69524.0,0.00144]
[1773115332948,0.00022001,69540.0,69524.0,0.00144]
[1773115333575,0.03,69538.0,69525.0,0.00144]
[1773115334140,0.03,69536.0,69526.0,0.00144]
[1773115336055,0.07190623,69535.0,69526.0,0.00144]
[1773115336259,0.03,69534.0,69526.0,0.00144]
[1773115337103,0.07190591,69536.0,69522.0,0.07970833]
[1773115337104,0.03,69533.0,69527.0,0.00144]
[1773115337527,0.03,69533.0,69522.0,0.07970833]
[1773115337745,0.03,69533.0,69527.0,0.00144]
[1773115338182,0.10190846,69533.0,69521.0,0.00144]
[1773115338601,0.00144,69538.0,69532.0,0.00722669]
[1773115338748,0.07334346,69538.0,69532.0,0.00722669]
[1773115339659,0.03,69535.0,69532.0,0.00722669]
[1773115339896,0.0719052,69536.0,69526.0,0.00144]
[1773115340295,0.0719052,69536.0,69526.0,0.00914066]
[1773115341427,0.03,69537.0,69527.0,0.0719145]
[1773115341624,0.03,69537.0,69528.0,0.00762024]
[1773115342001,0.03,69537.0,69526.0,0.07335544]
[1773115342002,0.07211679,69545.0,69529.0,0.27105474]
[1773115342201,0.07211679,69545.0,69531.0,0.00762024]
[1773115342403,0.03,69544.0,69532.0,0.00762024]
[1773115343378,0.03,69543.0,69532.0,0.07190861]
[1773115343599,0.03,69543.0,69533.0,0.00754021]
[1773115344211,0.00177422,69549.0,69535.0,0.00754021]
[1773115344212,0.07366609,69549.0,69535.0,0.00754021]
[1773115344419,0.03,69548.0,69537.0,0.26961474]
[1773115344631,0.10189286,69548.0,69538.0,0.00754021]
[1773115345039,0.03,69546.0,69538.0,0.00144]
[1773115345463,0.03,69544.0,69538.0,0.00144]
[1773115347102,0.10189692,69544.0,69535.0,0.00144]
[1773115347313,0.03,69544.0,69535.0,0.00144]
[1773115347487,0.10189723,69544.0,69535.0,0.00144]
[1773115348184,0.03,69544.0,69535.0,0.00144]
[1773115348332,0.03,69543.0,69536.0,0.00748921]
[1773115348545,0.07211444,69547.0,69535.0,0.00144]
[1773115348546,0.00022001,69547.0,69537.0,0.26961474]
[1773115348753,0.00022001,69547.0,69538.0,0.00748921]
[1773115349159,0.0721139,69547.0,69538.0,0.00748921]
[1773115349545,0.00022001,69544.0,69538.0,0.00748921]
[1773115349738,0.03,69546.0,69538.0,0.00748921]
[1773115350138,0.03,69546.0,69538.0,0.07939195]
[1773115350338,0.00022001,69547.0,69539.0,0.00748921]
[1773115351440,0.03022001,69547.0,69540.0,0.00748921]
[1773115351743,0.03022001,69547.0,69541.0,0.00892921]
[1773115351902,0.00023,69550.0,69541.0,0.00892921]
[1773115352105,0.00023,69550.0,69541.0,0.00904342]
[1773115353056,0.07332527,69556.0,69546.0,0.00748921]
[1773115353057,0.00144,69556.0,69546.0,0.00748921]
[1773115353200,0.00144,69556.0,69541.0,0.27116895]
[1773115353201,0.07187482,69566.0,69548.0,0.00748921]
[1773115353202,0.00144,69566.0,69548.0,0.00748921]
[1773115353408,0.03562,69564.0,69551.0,0.00748921]
[1773115353601,0.07187729,69563.0,69551.0,0.00748921]
[1773115353980,0.03,69560.0,69549.0,0.00144]
[1773115354182,0.03,69560.0,69550.0,0.00748921]
[1773115354591,0.03,69560.0,69551.0,0.25432465]
[1773115354764,0.03,69559.0,69552.0,0.00748921]
[1773115355774,0.03,69558.0,69553.0,0.07188762]
[1773115355950,0.03,69558.0,69554.0,0.00748921]
[1773115356117,0.03,69558.0,69555.0,0.00892921]
[1773115356561,0.07749629,69564.0,69555.0,0.00892921]
[1773115356562,0.00562,69564.0,69555.0,0.00892921]
[1773115356760,0.00562,69564.0,69553.0,0.07188762]
[1773115356761,0.03,69563.0,69553.0,0.07188762]
[1773115357120,0.03,69563.0,69555.0,0.00957915]
[1773115357618,0.00022001,69559.0,69555.0,0.00957915]
[1773115357774,0.000263,69568.0,69558.0,0.07188245]
[1773115357932,0.000263,69568.0,69553.0,0.07188762]
[1773115357933,0.26390584,69566.0,69547.0,0.07189345]
[1773115358285,0.03,69565.0,69554.0,0.00748921]
[1773115358630,0.2980892,69565.0,69555.0,0.00144]
[1773115358803,0.2980892,69565.0,69552.0,0.0002]
[1773115359064,0.03,69560.0,69535.0,0.07190593]
[1773115359209,0.00144,69564.0,69546.0,0.00748921]
[1773115359210,0.03,69557.0,69546.0,0.00748921]
[1773115359635,0.00022001,69566.0,69547.0,0.25432465]
[1773115359819,0.07209453,69566.0,69551.0,0.00662556]
[1773115360025,0.07209453,69566.0,69553.0,0.00662556]
[1773115360232,0.03,69565.0,69553.0,0.00662556]
[1773115360838,0.03,69565.0,69554.0,0.00662556]
[1773115361190,0.000263,69568.0,69556.0,0.00662556]
[1773115361389,0.000263,69568.0,69557.0,0.00662556]
[1773115361589,0.000263,69568.0,69550.0,0.30374467]
[1773115361590,0.03,69565.0,69550.0,0.07189072]
[1773115361805,0.03,69563.0,69555.0,0.00144]
[1773115362420,0.03,69563.0,69556.0,0.00662556]
[1773115362620,0.07213614,69568.0,69556.0,0.00662556]
[1773115362621,0.000263,69568.0,69556.0,0.00662556]
[1773115363704,0.000263,69568.0,69558.0,0.25432465]
[1773115363912,0.000263,69568.0,69560.0,0.07188039]
[1773115364058,0.000263,69568.0,69561.0,0.00144]
[1773115365066,0.000263,69568.0,69559.0,0.04851847]
[1773115365408,0.000263,69568.0,69534.0,0.45981741]
[1773115365409,0.30067353,69567.0,69560.0,0.00144]
[1773115365602,0.00022001,69563.0,69561.0,0.00144]
[1773115365957,0.10187832,69562.0,69558.0,0.00144]
[1773115366189,0.10187832,69562.0,69552.0,0.0002]
[1773115366190,0.03,69560.0,69552.0,0.0002]
[1773115366406,0.03,69560.0,69553.0,0.00144]
[1773115366787,0.30067353,69560.0,69553.0,0.00144]
[1773115367458,0.07187832,69562.0,69548.0,0.00144]
[1773115367459,0.03,69557.0,69548.0,0.00144]
[1773115367656,0.30067353,69557.0,69542.0,0.07189821]
[1773115367890,0.30067353,69557.0,69546.0,0.00144]
[1773115367891,0.29390584,69557.0,69546.0,0.00144]
[1773115368093,0.0720974,69563.0,69546.0,0.00144]
[1773115368094,0.00022001,69563.0,69548.0,0.25432465]
[1773115368296,0.00022001,69563.0,69552.0,0.25432465]
[1773115368469,0.00022001,69563.0,69553.0,0.00806556]
[1773115369083,0.03022001,69563.0,69553.0,0.00806556]
[1773115370206,0.03,69562.0,69555.0,0.00662556]
[1773115370936,0.07187378,69567.0,69555.0,0.00662556]
[1773115371144,0.000263,69568.0,69555.0,0.00662556]
[1773115371145,0.030263,69568.0,69555.0,0.00662556]
[1773115371320,0.030263,69568.0,69557.0,0.00621186]
[1773115371531,0.07185972,69580.0,69556.0,0.25823424]
[1773115371721,0.07232014,69577.0,69559.0,0.00621186]
[1773115371901,0.07232014,69577.0,69554.0,0.07188659]
[1773115371902,0.25688386,69576.0,69554.0,0.07188659]
[1773115372103,0.25688386,69576.0,69552.0,0.07188659]
[1773115372104,0.10186695,69573.0,69555.0,0.00144]
[1773115372306,0.03,69567.0,69555.0,0.00144]
[1773115372941,0.03,69567.0,69556.0,0.00144]
[1773115373101,0.07330695,69573.0,69556.0,0.00765186]
[1773115373102,0.03,69565.0,69556.0,0.00765186]
[1773115373309,0.07232014,69572.0,69559.0,0.25823424]
[1773115373527,0.45651967,69599.0,69557.0,0.00144]
[1773115373528,0.00048,69590.0,69562.0,0.00621186]
[1773115373747,0.07185043,69589.0,69566.0,0.00621186]
[1773115373972,0.14417057,69589.0,69569.0,0.25823424]
[1773115374126,0.03,69588.0,69572.0,0.07186799]
[1773115374328,0.03,69588.0,69575.0,0.25823424]
[1773115374570,0.07232014,69589.0,69578.0,0.00621186]
[1773115374783,0.00562,69592.0,69580.0,0.25823424]
[1773115374981,0.00562,69592.0,69572.0,0.07186799]
[1773115374982,0.03547925,69591.0,69578.0,0.00011421]
[1773115375279,0.03,69590.0,69579.0,0.00765186]
[1773115375486,0.00562,69592.0,69579.0,0.00621186]
[1773115375643,0.07183795,69602.0,69582.0,0.25823424]
[1773115375644,0.07183719,69602.0,69582.0,0.25823424]
[1773115375862,0.07206923,69600.0,69585.0,0.00621186]
[1773115376062,0.03,69599.0,69587.0,0.00621186]
[1773115376268,0.03,69599.0,69588.0,0.07806332]
[1773115376468,0.03,69599.0,69589.0,0.00621186]
[1773115376666,0.03,69599.0,69585.0,0.3300857]
[1773115376667,0.00023,69600.0,69579.0,0.25823424]
[1773115376668,0.07206946,69600.0,69579.0,0.25823424]
[1773115376860,0.25688386,69599.0,69580.0,0.07185931]
[1773115377058,0.26318455,69599.0,69581.0,0.00144]
[1773115377513,0.25688386,69599.0,69581.0,0.00144]
[1773115377708,0.25832386,69599.0,69581.0,0.00144]
[1773115377909,0.03,69596.0,69581.0,0.00144]
[1773115378113,0.00630069,69597.0,69580.0,0.07185931]
[1773115378114,0.03,69594.0,69582.0,0.00144]
[1773115378490,0.10184622,69594.0,69583.0,0.07185663]
[1773115381818,0.03,69593.0,69583.0,0.07185663]
[1773115382024,0.07184198,69598.0,69583.0,0.07806849]
[1773115382245,0.33038479,69599.0,69583.0,0.07806849]
[1773115382246,0.00022001,69599.0,69585.0,0.00621186]
[1773115382480,0.071831,69608.0,69583.0,0.07185663]
[1773115382481,0.06390526,69604.0,69588.0,0.25823424]
[1773115382604,0.07205342,69606.0,69591.0,0.00621186]
[1773115382833,0.00630069,69602.0,69580.0,0.00621186]
[1773115383036,0.03,69603.0,69584.0,0.25823424]
[1773115383240,0.03,69603.0,69587.0,0.00621186]
[1773115383434,0.03,69603.0,69589.0,0.00621186]
[1773115383848,0.03,69602.0,69589.0,0.00621186]
[1773115384032,0.03,69602.0,69589.0,0.2591706]
[1773115384240,0.03,69602.0,69592.0,0.00621186]
[1773115384439,0.03,69602.0,69593.0,0.00144]
[1773115384855,0.03,69602.0,69593.0,0.07328564]
[1773115385520,0.03,69601.0,69593.0,0.07328564]
[1773115385691,0.03,69601.0,69594.0,0.00621186]
[1773115386326,0.07205311,69606.0,69594.0,0.00576891]
[1773115386475,0.03,69605.0,69594.0,0.00576891]
[1773115386898,0.03,69605.0,69593.0,0.07328564]
[1773115386899,0.07204617,69613.0,69598.0,0.00621186]
[1773115387101,0.0029,69620.0,69601.0,0.2591706]
[1773115387300,0.0029,69620.0,69604.0,0.00621186]
[1773115387301,0.07471859,69620.0,69604.0,0.00621186]
[1773115387530,0.07471859,69620.0,69602.0,0.00144]
[1773115387531,0.0029,69620.0,69607.0,0.2591706]
[1773115387757,0.0029,69620.0,69608.0,0.00765186]
[1773115388165,0.00022001,69616.0,69608.0,0.00765186]
[1773115388372,0.00022001,69616.0,69607.0,0.259023]
[1773115388373,0.00022001,69616.0,69609.0,0.00144]
[1773115388499,0.00022001,69616.0,69609.0,0.00765186]
[1773115388710,0.00328072,69620.0,69611.0,0.00621186]
[1773115388958,0.00328072,69620.0,69612.0,0.07182669]
[1773115389165,0.00328072,69620.0,69613.0,0.00621186]
[1773115389377,0.00328072,69620.0,69612.0,0.07182669]
[1773115389823,0.00328072,69620.0,69613.0,0.00723209]
[1773115390024,0.00328072,69620.0,69613.0,0.00708448]
[1773115390602,0.03328072,69620.0,69613.0,0.00708448]
[1773115390799,0.03328072,69620.0,69614.0,0.0012924]
[1773115391261,0.00015,69623.0,69614.0,0.0012924]
[1773115391428,0.07207966,69623.0,69614.0,0.0718245]
[1773115391730,0.03,69622.0,69615.0,0.00144]
[1773115392153,0.00014763,69621.0,69615.0,0.00867209]
[1773115392381,0.03,69622.0,69616.0,0.00144]
[1773115392808,0.07207952,69623.0,69612.0,0.00144]
[1773115392809,0.03,69620.0,69612.0,0.00144]
[1773115392956,0.00723483,69619.0,69607.0,0.07183185]
[1773115393157,0.00723483,69619.0,69608.0,0.00144]
[1773115393414,0.03,69617.0,69609.0,0.00144]
[1773115393608,0.03,69617.0,69610.0,0.00144]
[1773115394389,0.03,69618.0,69610.0,0.00144]
[1773115395374,0.03,69617.0,69610.0,0.07326847]
[1773115396417,0.0718178,69621.0,69610.0,0.07312089]
[1773115396790,0.0718178,69621.0,69610.0,0.07182847]
[1773115396991,0.0718178,69621.0,69611.0,0.00144]
[1773115397191,0.00723483,69620.0,69580.0,0.6348391]
[1773115397399,0.00723483,69615.0,69602.0,0.00144]
[1773115397733,0.07181947,69619.0,69592.0,0.08469942]
[1773115397734,0.03,69610.0,69592.0,0.08469942]
[1773115397941,0.07181947,69619.0,69594.0,0.00723209]
[1773115397942,0.03,69607.0,69594.0,0.00723209]
[1773115398135,0.03,69607.0,69595.0,0.2591706]
[1773115398332,0.03,69607.0,69598.0,0.00723209]
[1773115398874,0.03,69606.0,69598.0,0.00708451]
[1773115399461,0.07182142,69618.0,69599.0,0.07184011]
[1773115399663,0.07181804,69621.0,69599.0,0.07184011]
[1773115399817,0.03,69617.0,69597.0,0.07184011]
[1773115400018,0.03,69610.0,69595.0,0.07184217]
[1773115400223,0.00723483,69607.0,69595.0,0.07184217]
[1773115400418,0.00723483,69607.0,69596.0,0.00144]
[1773115401046,0.03,69608.0,69596.0,0.00144]
[1773115401247,0.03,69607.0,69597.0,0.00723209]
[1773115401461,0.03,69607.0,69599.0,0.07184011]
[1773115401664,0.03,69607.0,69599.0,0.0790722]
[1773115402136,0.03,69606.0,69594.0,0.07184431]
[1773115402335,0.00723483,69605.0,69595.0,0.00144]
[1773115402553,0.03,69606.0,69597.0,0.001]
[1773115402989,0.07182798,69611.0,69598.0,0.00144]
[1773115403287,0.03,69611.0,69598.0,0.00144]
[1773115403442,0.07326239,69617.0,69598.0,0.00144]
[1773115403443,0.07181857,69620.0,69600.0,0.07183908]
[1773115403645,0.0720377,69621.0,69604.0,0.2591706]
[1773115403885,0.0720377,69621.0,69606.0,0.00723209]
[1773115404325,0.03,69620.0,69606.0,0.00723209]
[1773115404735,0.10905327,69620.0,69607.0,0.00129242]
[1773115404969,0.10905327,69620.0,69604.0,0.001]
[1773115404970,0.00723483,69619.0,69604.0,0.001]
[1773115405197,0.00723483,69619.0,69608.0,0.00144]
[1773115405594,0.03,69617.0,69609.0,0.07182979]
[1773115405757,0.03,69617.0,69609.0,0.07168223]
[1773115406547,0.03,69616.0,69608.0,0.08035431]
[1773115407430,0.03,69616.0,69608.0,0.07312222]
[1773115407703,0.03,69610.0,69602.0,0.07183627]
[1773115408291,0.03,69610.0,69597.0,0.00723209]
[1773115408292,0.03,69610.0,69603.0,0.00144]
[1773115408516,0.00723483,69606.0,69592.0,0.07746638]
[1773115408739,0.00723483,69606.0,69592.0,0.07890638]
[1773115409363,0.07182772,69611.0,69592.0,0.07890638]
[1773115409364,0.07232229,69625.0,69592.0,0.07890638]
[1773115409527,0.00723483,69621.0,69601.0,0.00723209]
[1773115409729,0.00723483,69621.0,69592.0,0.0778471]
[1773115409730,0.03723483,69614.0,69602.0,0.00144]
[1773115409936,0.03,69614.0,69592.0,0.0778471]
[1773115410129,0.00144,69617.0,69597.0,0.00144]
[1773115410130,0.00723483,69608.0,69597.0,0.00144]
[1773115410306,0.00723483,69608.0,69592.0,0.08507919]
[1773115410510,0.27419933,69609.0,69594.0,0.00723209]
[1773115410511,0.03,69609.0,69594.0,0.00723209]
[1773115411260,0.03,69605.0,69592.0,0.0778471]
[1773115411459,0.0718205,69618.0,69592.0,0.0778471]
[1773115411460,0.03,69603.0,69592.0,0.0778471]
[1773115411661,0.00723483,69602.0,69594.0,0.07184527]
[1773115412012,0.03,69601.0,69594.0,0.07184527]
[1773115412974,0.00144,69607.0,69594.0,0.07184527]
[1773115413237,0.07182062,69618.0,69598.0,0.2591706]
[1773115413447,0.00723483,69615.0,69599.0,0.00144]
[1773115413651,0.00723483,69613.0,69599.0,0.00144]
[1773115413831,0.07182669,69612.0,69600.0,0.07183908]
[1773115413974,0.03,69611.0,69600.0,0.07183908]
[1773115414194,0.03,69611.0,69601.0,0.00723209]
[1773115414399,0.03,69611.0,69602.0,0.00144]
[1773115414822,0.00723483,69617.0,69603.0,0.00144]
[1773115415078,0.03723483,69617.0,69603.0,0.00144]
[1773115415969,0.03,69617.0,69604.0,0.07183495]
[1773115416146,0.03,69616.0,69605.0,0.00723209]
[1773115417266,0.07181904,69620.0,69605.0,0.00708453]
[1773115417267,0.03,69618.0,69605.0,0.00708453]
[1773115418052,0.03,69617.0,69606.0,0.07183288]
[1773115419324,0.07181861,69620.0,69606.0,0.07183288]
[1773115419325,0.10181953,69619.0,69606.0,0.07183288]
[1773115419519,0.1018197,69619.0,69606.0,0.07183288]
[1773115420058,0.10873947,69619.0,69606.0,0.0716853]
[1773115421057,0.10873947,69619.0,69604.0,0.07183495]
[1773115421058,0.03,69615.0,69604.0,0.07183495]
[1773115421261,0.00691977,69614.0,69606.0,0.00144]
[1773115421474,0.00691977,69614.0,69604.0,0.07183495]
[1773115421675,0.00691977,69614.0,69605.0,0.00144]
[1773115422013,0.03,69618.0,69605.0,0.00144]
[1773115422214,0.03,69618.0,69605.0,0.00822397]
[1773115422677,0.03,69618.0,69606.0,0.07183288]
[1773115423091,0.00022001,69621.0,69607.0,0.00678397]
[1773115423307,0.00022001,69621.0,69611.0,0.00678397]
[1773115423506,0.00022001,69621.0,69612.0,0.00822397]
[1773115424501,0.03,69624.0,69612.0,0.00822397]
[1773115424899,0.03,69624.0,69614.0,0.00678397]
[1773115425426,0.03,69623.0,69614.0,0.00678397]
[1773115425717,0.0005086,69625.0,69614.0,0.00678397]
[1773115426156,0.0005086,69625.0,69614.0,0.00689807]
[1773115426489,0.00022001,69628.0,69616.0,0.00678397]
[1773115426953,0.00022001,69628.0,69618.0,0.00678397]
[1773115427157,0.00022001,69628.0,69619.0,0.00822397]
[1773115428218,0.00022001,69628.0,69620.0,0.00678397]
[1773115428426,0.00022001,69628.0,69616.0,0.07182153]
[1773115428427,0.03,69627.0,69616.0,0.07182153]
[1773115428597,0.00691977,69623.0,69614.0,0.00144]
[1773115429002,0.00691977,69623.0,69615.0,0.0718236]
[1773115429217,0.03,69621.0,69615.0,0.0718236]
[1773115430277,0.03,69622.0,69615.0,0.0718236]
[1773115431530,0.03,69621.0,69615.0,0.0718236]
[1773115432658,0.03,69623.0,69615.0,0.0718236]
[1773115433748,0.03,69622.0,69615.0,0.0718236]
[1773115433953,0.00022001,69628.0,69616.0,0.00752024]
[1773115434496,0.00022001,69629.0,69620.0,0.00752024]
[1773115434671,0.07180507,69633.0,69621.0,0.00896024]
[1773115434816,0.03,69632.0,69621.0,0.00896024]
[1773115435199,0.0069373,69629.0,69621.0,0.00144]
[1773115435577,0.03,69630.0,69621.0,0.00144]
[1773115436401,0.10180826,69630.0,69622.0,0.07181637]
[1773115436821,0.03,69628.0,69620.0,0.00144]
[1773115437146,0.03,69626.0,69611.0,0.00144]
[1773115437436,0.0069373,69625.0,69611.0,0.00144]
[1773115438270,0.0069373,69625.0,69611.0,0.00896024]
[1773115438467,0.03,69624.0,69612.0,0.07182669]
[1773115440552,0.0069373,69618.0,69608.0,0.00144]
[1773115440700,0.03,69617.0,69608.0,0.00752024]
[1773115441131,0.03,69617.0,69607.0,0.00144]
[1773115441463,0.03,69617.0,69605.0,0.07183316]
[1773115441464,0.07181844,69620.0,69605.0,0.00144]
[1773115441465,0.0069373,69614.0,69605.0,0.00144]
[1773115441595,0.03,69613.0,69605.0,0.00144]
[1773115442204,0.03,69613.0,69604.0,0.0002]
[1773115442800,0.03,69611.0,69604.0,0.0002]
[1773115444074,0.07181412,69625.0,69604.0,0.0002]
[1773115444075,0.00144,69623.0,69607.0,0.00752024]
[1773115444306,0.07181457,69624.0,69609.0,0.00752024]
[1773115444586,0.07181457,69624.0,69610.0,0.00752024]
[1773115444776,0.07181457,69624.0,69612.0,0.00752024]
[1773115444971,0.03,69623.0,69613.0,0.07182566]
[1773115445396,0.07179791,69640.0,69615.0,0.26258284]
[1773115445607,0.00023,69650.0,69613.0,0.07182566]
[1773115445608,0.00028554,69635.0,69621.0,0.26258284]
[1773115445850,0.00028554,69635.0,69613.0,0.07182566]
[1773115445851,0.07179584,69642.0,69613.0,0.07182566]
[1773115445854,0.24091019,69646.0,69625.0,0.26258284]
[1773115446046,0.23117955,69660.0,69625.0,0.26258284]
[1773115446047,0.00144,69655.0,69634.0,0.26258284]
[1773115446275,0.00144,69655.0,69637.0,0.00752024]
[1773115446575,0.00144,69655.0,69635.0,0.00144]
[1773115446576,0.03,69656.0,69642.0,0.00752024]
[1773115446783,0.03,69656.0,69644.0,0.00752024]
[1773115446987,0.07177586,69662.0,69643.0,0.00144]
[1773115446988,0.03,69655.0,69643.0,0.00144]
[1773115447145,0.03,69655.0,69644.0,0.07179369]
[1773115447346,0.03,69655.0,69645.0,0.00752024]
[1773115447566,0.03,69655.0,69646.0,0.00752024]
[1773115447742,0.03,69655.0,69642.0,0.07179473]
[1773115447743,0.03,69653.0,69639.0,0.07179828]
[1773115447932,0.29024019,69653.0,69640.0,0.00144]
[1773115448998,0.00022001,69642.0,69640.0,0.00144]
[1773115449197,0.03,69650.0,69641.0,0.07179678]
[1773115449647,0.00022001,69649.0,69641.0,0.07179678]
[1773115449802,0.00022001,69649.0,69641.0,0.34156413]
[1773115450202,0.00022001,69649.0,69641.0,0.07898129]
[1773115450839,0.00022001,69649.0,69640.0,0.07323717]
[1773115451072,0.03022001,69649.0,69641.0,0.00718451]
[1773115451211,0.07177926,69658.0,69642.0,0.07179575]
[1773115451418,0.0718933,69658.0,69643.0,0.26258284]
[1773115451618,0.0718933,69658.0,69644.0,0.00718451]
[1773115451870,0.00011404,69658.0,69644.0,0.00718451]
[1773115452090,0.03011404,69658.0,69645.0,0.26258284]
[1773115452389,0.03011404,69658.0,69647.0,0.00718451]
[1773115452767,0.03011404,69658.0,69646.0,0.00144]
[1773115452768,0.29772759,69656.0,69646.0,0.00144]
[1773115452937,0.0074874,69655.0,69646.0,0.00144]
[1773115453132,0.03,69653.0,69646.0,0.00144]
[1773115453647,0.07178338,69654.0,69637.0,0.00144]
[1773115453648,0.0074874,69650.0,69637.0,0.00144]
[1773115453851,0.03,69648.0,69637.0,0.00144]
[1773115455027,0.07322338,69654.0,69632.0,0.07180606]
[1773115455028,0.03,69645.0,69632.0,0.07180606]
[1773115455235,0.03,69645.0,69625.0,0.00023]
[1773115455236,0.03,69637.0,69625.0,0.00023]
[1773115455508,0.03,69637.0,69625.0,0.07204237]
[1773115455704,0.03,69637.0,69626.0,0.00718451]
[1773115456272,0.03,69636.0,69626.0,0.00718451]
[1773115456470,0.03,69636.0,69626.0,0.00725004]
[1773115456670,0.03,69636.0,69626.0,6.553e-05]
[1773115457109,0.03,69636.0,69621.0,0.07181644]
[1773115457110,0.07179741,69641.0,69622.0,0.00144]
[1773115457111,0.29538602,69634.0,69622.0,0.00144]
[1773115457345,0.03,69632.0,69623.0,0.07181534]
[1773115457604,0.03,69632.0,69624.0,0.00718451]
[1773115458025,0.07179955,69639.0,69624.0,0.00718451]
[1773115458244,0.03,69638.0,69624.0,0.00718451]
[1773115458617,0.03,69638.0,69625.0,0.26258284]
[1773115458824,0.03,69638.0,69623.0,0.07181534]
[1773115459045,0.03,69638.0,69624.0,0.00862451]
[1773115459275,0.03,69647.0,69627.0,0.07181122]
[1773115459499,0.03011403,69647.0,69631.0,0.26258284]
[1773115459702,0.03011403,69647.0,69634.0,0.00718451]
[1773115459851,0.03011403,69647.0,69637.0,0.00718451]
[1773115460050,0.03011403,69647.0,69639.0,0.00718451]
[1773115460258,0.00011403,69647.0,69629.0,0.00718451]
[1773115460430,0.29024019,69645.0,69629.0,0.00718451]
[1773115460628,0.29024019,69645.0,69630.0,0.00144]
[1773115461072,0.03,69645.0,69630.0,0.00144]
[1773115461516,0.03,69645.0,69625.0,0.33439406]
[1773115461517,0.03,69645.0,69612.0,0.17922738]
[1773115461518,0.23098578,69640.0,69612.0,0.17922738]
[1773115461728,0.26024019,69626.0,69609.0,0.07182944]
[1773115461923,0.00587681,69628.0,69611.0,0.07182761]